Cogmind - Beta 15 @@@ ROGUE MODE // 2025.08.07 @ 17:42:29 Player: Endlessblaze Result: Destroyed by EH-JC9(R) with Subdweller Laser Performance ------------- Evolutions (0) 0 Regions Visited (2) 400 Robots Destroyed (25) 125 Value Destroyed (475) 475 Prototype IDs (2) 40 Alien Tech Used (0) 0 Bonus (0) 0 TOTAL SCORE: 1040 Bonus ------- None Cogmind --------- Core Integrity 0/250 Matter 231/300 Energy 40/100 System Corruption 0% Temperature Cool (6) Movement Core (400) Ox7 Location -10/Subcaves Parts ------- > --- POWER (1) -------- (None) > --- PROPULSION (2) --- (None) > --- UTILITY (2) ------ Large Storage Unit Transport Network Coupler > --- WEAPON (2) ------- Mining Claw > --- INVENTORY (15) --- Aluminum Leg Aluminum Leg Medium Battery (150) Large Battery (200) Structural Scanner Terrain Scanner Seismic Detector Hacking Suite Scrap Shield Fragment (45) Peak State ------------ > --- POWER ------------ Ion Engine > --- PROPULSION ------- Aluminum Leg Aluminum Leg > --- UTILITY ---------- Improved Terrain Scanner Seismic Detector > --- WEAPON ----------- EM Pulse Gun Assault Rifle > --- INVENTORY -------- (None) [Rating: 9] Favorites ----------- Power Ion Engine Engine Ion Engine Propulsion Aluminum Leg Leg Aluminum Leg Utility Seismic Detector Device Seismic Detector Storage Large Storage Unit Processor Transport Network Coupler Weapon EM Pulse Gun Energy Gun EM Pulse Gun Ballistic Gun Assault Rifle Ballistic Cannon Light Cannon Special Weapon Mining Laser Slashing Weapon Mining Claw Build | -11 -10 -10 ------- Run | Yrd Mat Sub Slots Evolved . | . . . Power . | . . . Propulsion . | . . . Utility . | . . . Weapon . | . . . Parts Attached 16 | 7 7 2 Power 1 | 1 . . Engine 1 | 1 . . Core . | . . . Reactor . | . . . Propulsion 4 | 2 2 . Treads . | . . . Leg 4 | 2 2 . Wheel . | . . . Hover . | . . . Flight . | . . . Utility 5 | 2 3 . Device 3 | 2 1 . Storage 1 | . 1 . Processor 1 | . 1 . Hackware . | . . . Protection . | . . . Artifact . | . . . Weapon 6 | 2 2 2 Energy Gun 2 | 1 1 . Energy Cannon . | . . . Ballistic Gun 1 | 1 . . Ballistic Cannon 1 | . 1 . Launcher . | . . . Special Weapon 1 | . . 1 Impact Weapon . | . . . Slashing Weapon 1 | . . 1 Piercing Weapon . | . . . Special Melee Weapon . | . . . Unidentified Prototypes . | . . . Parts Lost 7 | . 1 6 Power 1 | . . 1 Propulsion 2 | . . 2 Utility . | . . . Weapon 4 | . 1 3 Highest Loss Streak 4 | . 1 4 To Critical Strikes . | . . . Average Backups 5 | . 5 9 Power . | . . . Propulsion . | . . 2 Utility 3 | . 3 6 Weapon 1 | . 1 1 Tool/Special . | . . . Unused Backups 12 | 4 2 6 Power . | . . . Propulsion 6 | 4 . 2 Utility 5 | . 1 4 Weapon 1 | . 1 . Tool/Special . | . . . Average Slot Usage (%) 94 | . 95 87 Engine 13 | . 14 8 Leg 27 | . 28 26 Device 18 | . 21 . Storage 4 | . 3 14 Processor 4 | . 3 14 Energy Gun 14 | . 15 8 Ballistic Gun 2 | . 3 . Ballistic Cannon 6 | . 4 13 Peak Build Rating 9 | 9 9 8 Average Rating 7 | 6 7 7 On Entrance 5 | . 9 8 Naked Turns . | . . . Heaviest Build 30 | 11 30 30 Greatest Support 20 | 20 20 20 Greatest Overweight (x) 3 | 1 3 2 Average Overweight (x) . | . . 1 Largest Inventory Capacity 15 | 5 15 15 Average Capacity 8 | 5 7 15 Most Carried 11 | 2 10 11 Average Carried 5 | . 5 10 Final Capacity 15 | 5 15 15 Final Carried 10 | . 10 9 Class Distribution -------------------- 100% | Mutant Dominant Class ---------------- Mutant | -10/Materials Mutant | -10/Subcaves Resources | -11 -10 -10 ----------- Run | Yrd Mat Sub Matter Collected 460 | 291 110 59 Remotely . | . . . Salvage Created 689 | 157 465 67 Parts 41 | 6 30 5 Haulers Intercepted . | . . . Recyclers Shooed . | . . . Parts Field Recycled . | . . . Retrieved Matter . | . . . Parts Self-Destructed 12 | . . 12 Prevented . | . . . Kills | -11 -10 -10 ------- Run | Yrd Mat Sub Combat Hostiles Destroyed 16 | . 13 3 Guns 11 | . 11 . Cannons 5 | . 2 3 Classes Destroyed 8 | 2 5 1 Worker 2 | . 2 . Tunneler 2 | 2 . . Recycler 2 | 1 1 . Operator 2 | . 2 . Watcher 1 | . 1 . Swarmer 9 | . 9 . Grunt 4 | . 4 . Subdweller 3 | . . 3 Best Kill Streak 4 | 1 4 2 Combat Bots Only 3 | . 3 2 Max Kills in Single Turn 2 | 1 2 1 Gunslinging . | . . . Exploded . | . . . Melee . | . . . Uniques/NPCs Destroyed . | . . . Combat | -11 -10 -10 -------- Run | Yrd Mat Sub Hostile Shots Fired 106 | . 70 36 Missed 34 | . 28 6 Hits 72 | . 42 30 Projectile 72 | . 42 30 Critical Strikes 2 | . 1 1 Damage Taken 1049 | . 420 629 Core 250 | . 66 184 Absorbed by Shields . | . . . Regen/Repaired (Parts) 44 | . 44 . Core Remaining (%) 100 | 100 . . Volleys Fired 88 | 7 67 14 Largest 2 | 2 2 2 Hottest 130 | 60 80 130 Shots Fired 151 | 14 118 19 Gun 124 | 14 108 2 Cannon 24 | . 10 14 Launcher . | . . . Special 3 | . . 3 Kinetic 50 | 7 29 14 Thermal 3 | . . 3 Explosive . | . . . Electromagnetic 98 | 7 89 2 Robot Hit Streak 10 | 8 5 10 Robot Miss Streak 8 | 1 8 1 Penetration Max . | . . . Secondary Targets . | . . . Shots Hit Robots 72 | 10 46 16 Core Hits 34 | 3 24 7 Critical Kills . | . . . Critical Parts Destroyed . | . . . Critical Strikes . | . . . Melee Attacks 1 | . . 1 Impact . | . . . Slashing 1 | . . 1 Piercing . | . . . Sneak Attacks . | . . . Combat Hostiles . | . . . Follow-up Attacks . | . . . Damage Inflicted 1142 | 131 733 278 Guns 758 | 131 617 10 Cannons 247 | . 73 174 Explosions 43 | . 43 . Melee 22 | . . 22 Ramming . | . . . Kinetic 389 | 51 164 174 Thermal 115 | . 43 72 Explosive . | . . . Electromagnetic 616 | 80 526 10 Impact . | . . . Slashing 22 | . . 22 Piercing . | . . . Highest Corruption . | . . . Average Corruption . | . . . Corruption Purged . | . . . Corruption Blocked . | . . . Overload Shots . | . . . Overflow Damage . | . . . Projectiles . | . . . Explosions . | . . . Melee . | . . . Knockbacks 5 | . 1 4 Impact . | . . . Kinetic 5 | . 1 4 Secondary . | . . . Self-Inflicted Damage . | . . . Shots . | . . . Rammed . | . . . Targets Rammed . | . . . Kicked . | . . . Crushed . | . . . Highest Temperature 252 | . 252 . Average Temperature 91 | . 91 . Received Heat Transfer 213 | . 135 78 Siege Activations . | . . . Martial Activations . | . . . Shielding Activations . | . . . Robots Disrupted . | . . . Combat Hostiles . | . . . Robots Corrupted . | . . . Combat Hostiles . | . . . Parts Fried 2 | . 2 . Impact Corruptions . | . . . Robots Melted . | . . . Combat Hostiles . | . . . Parts Melted 1 | . 1 . Heat Transferred 250 | . 100 150 Parts Sabotaged . | . . . Parts Stolen . | . . . Parts Stripped . | . . . Power Chain Reactions 1 | . 1 . Alert | -11 -10 -10 ------- Run | Yrd Mat Sub Maximum Alert Level . | . . . Low Security (%) 100 | 100 100 . Level 1 . | . . . Level 2 . | . . . Level 3 . | . . . Level 4 . | . . . Level 5 . | . . . High Security . | . . . Max Security . | . . . Peak Influence 194 | 5 194 . Initial . | . . . Average 69 | . 76 . Influence Increases 522 | 15 507 . Destroy 0b10 Robot/C 260 | . 260 . Destroy 0b10 Robot/NC 45 | 15 30 . Destroy Leader 52 | . 52 . Successful Hack 25 | . 25 . Disable Machine 60 | . 60 . Destroy Structure 5 | . 5 . Lose Combat Pursuer 75 | . 75 . Influence Decreases 522 | 15 439 68 Entered New Map 33 | . . 33 Time Decay 479 | 15 429 35 Lost Part 10 | . 10 . Squads Dispatched 1 | . 1 . Investigation . | . . . Extermination . | . . . Reinforcement 1 | . 1 . Assault . | . . . Garrison . | . . . Intercept . | . . . Searches Triggered . | . . . Construction Impeded . | . . . Haulers Reinforced . | . . . Active Scanning Responses . | . . . Cargo Convoy Interrupts . | . . . Stealth | -11 -10 -10 --------- Run | Yrd Mat Sub Distress Signals 3 | . 3 . Communications Jammed . | . . . Distress Signals . | . . . Times Spotted 34 | . 27 7 Peak Tracking Total 4 | . 4 4 Tactical Retreats 4 | . 4 . Traps | -11 -10 -10 ------- Run | Yrd Mat Sub Traps Triggered 1 | . 1 . Indirectly . | . . . Trap Hack Attempts . | . . . Triggered . | . . . Disarmed . | . . . Reprogrammed . | . . . Reused . | . . . Traps Extracted . | . . . Installed . | . . . Triggered . | . . . Machines | -11 -10 -10 ---------- Run | Yrd Mat Sub Machines Disabled 4 | . 4 . Max in Single Turn 1 | . 1 . Machines Repaired . | . . . Machines Dismantled . | . . . Machines Sabotaged . | . . . Overloaded Fab Kills . | . . . Hacking | -11 -10 -10 --------- Run | Yrd Mat Sub Machines Accessed 10 | . 10 . Terminals 7 | . 7 . Fabricators . | . . . Repair Stations 1 | . 1 . Recycling Units 2 | . 2 . Scanalyzers . | . . . Garrison Access . | . . . Total Hacks 27 | . 27 . Successful 18 | . 18 . Failed 9 | . 9 . Catastrophic 3 | . 3 . Database Lockouts . | . . . Manual 17 | . 17 . Terminals 21 | . 21 . Fabricators . | . . . Repair Stations 2 | . 2 . Recycling Units 4 | . 4 . Scanalyzers . | . . . Garrison Access . | . . . Terminal Hacks 6 | . 6 . Record 2 | . 2 . Prototype ID Bank 1 | . 1 . Level Access Points 1 | . 1 . Emergency Access Points 1 | . 1 . Terminal Index 1 | . 1 . Fabricator Hacks . | . . . Repair Station Hacks 2 | . 2 . Scan Component 1 | . 1 . Repair 1 | . 1 . Recycling Unit Hacks 2 | . 2 . Report Inventory 1 | . 1 . Retrieve Components 1 | . 1 . Scanalyzer . | . . . Garrison Access Hacks . | . . . Unauthorized Hacks 6 | . 6 . Terminals 6 | . 6 . Botnet 6 | . 6 . Fabricators . | . . . Repair Stations . | . . . Recycling Units . | . . . Scanalyzers . | . . . Garrison Access . | . . . Data Cores Recovered . | . . . Used . | . . . Hacking Detections 9 | . 9 . Full Trace Events . | . . . Feedback Events . | . . . Feedback Blocked . | . . . Robot Schematics Acquired . | . . . Robots Built . | . . . Authchips . | . . . Time . | . . . Total Robot Build Rating . | . . . Part Schematics Acquired . | . . . Parts Built . | . . . Authchips . | . . . Time . | . . . Total Part Build Rating . | . . . Parts Repaired 1 | . 1 . Time 26 | . 26 . Parts Recycled . | . . . Recycled Matter . | . . . Retrieved Matter . | . . . Retrieved Components 10 | . 10 . Parts Scanalyzed . | . . . Part Schematics Acquired . | . . . Parts Damaged . | . . . Bothacking | -11 -10 -10 ------------ Run | Yrd Mat Sub Used RIF Installer . | . . . Robots Hacked . | . . . Non-combat . | . . . Combat . | . . . Robot Hacks Applied . | . . . Relay Couplers Released . | . . . Fabnet Peak Effective % . | . . . Robots Rewired . | . . . Allies Hacked . | . . . Hacks Repelled . | . . . Allies | -11 -10 -10 -------- Run | Yrd Mat Sub Total Allies . | . . . Largest Group . | . . . Highest-Rated Group . | . . . Highest-Rated Ally . | . . . Total Orders . | . . . Ally Attacks . | . . . Total Damage . | . . . Kills . | . . . Allies Corrupted . | . . . Allies Melted . | . . . Intel | -11 -10 -10 ------- Run | Yrd Mat Sub Active Infowar (turns) 1688 | 10 1438 240 Terrain 1119 | 10 1109 . Seismic 1118 | 10 1108 . T.N.C. 567 | . 327 240 Robot Analysis Total . | . . . Derelict Logs Recovered 2 | . . 2 Drone Launches . | . . . Drone Recoveries . | . . . Exploration | -11 -10 -10 ------------- Run | Yrd Mat Sub Turns Passed 1825 | 147 1438 240 Spaces Moved 999 | 96 802 101 Core 17 | 16 1 . Treads . | . . . Legs 982 | 80 801 101 Wheels . | . . . Hover . | . . . Flight . | . . . Fastest Speed 50 | 50 120 190 Average Speed 143 | 114 140 191 Slowest Speed 260 | 120 200 260 Overloaded Moves . | . . . Propulsion Burnouts . | . . . Robots Hopped . | . . . Potential Cave-ins . | . . . Cave-ins Triggered . | . . . Exploration Rate (%) 34 | 5 85 12 Regions Visited 2 Branch Regions 1 Pre-discovered Areas . | . . . Known Exits Taken . | . . . Unknown Exits Taken 2 | 1 1 . Scrap Searched . | . . . Spaces Dug . | . . . Terrain Destroyed 3 | . 3 . Melee . | . . . Projectile . | . . . AOE 3 | . 3 . Terrain Rammed . | . . . Walls Destroyed . | . . . Machines Disabled . | . . . Actions | -11 -10 -10 --------- Run | Yrd Mat Sub Total 1234 | 117 996 121 Wait 102 | . 100 2 Move 997 | 95 801 101 Hop . | . . . Pick Up 18 | 4 13 1 Fast Attach 11 | 7 4 . Attach 3 | . 1 2 Detach . | . . . Swap 3 | . 3 . Drop 11 | 4 7 . Fire 88 | 7 67 14 Melee 1 | . . 1 Ram . | . . . Kick . | . . . Crush . | . . . Escape Stasis . | . . . Rewire . | . . . Trap . | . . . Miscellaneous . | . . . Route ------- -11/Scrapyard -10/Materials (discovered 5 exits: *Mat x3 / [*Min] / [*Sub]) -10/Subcaves History --------- Turn | Location | Event 18 | -11/Scrapyard | Discovered new exit (range 13) 148 | -11/Scrapyard | Entered Materials 209 | -10/Materials | Discovered new exit (range 10) 301 | -10/Materials | Build established: Mutant 356 | -10/Materials | Discovered new exit (range 3) 468 | -10/Materials | Discovered new exit (range 15) 471 | -10/Materials | Identified exit to Materials 916 | -10/Materials | Repaired EM Pulse Gun 990 | -10/Materials | Discovered new exit (range 15) 1586 | -10/Materials | Entered Subcaves 1587 | -10/Subcaves | Approached by a straggling Scientist 1588 | -10/Subcaves | Learned Materials stockpile data 1611 | -10/Subcaves | Learned Materials security intel 1814 | -10/Subcaves | Core integrity fell below 50% 1825 | -10/Subcaves | Core integrity fell below 20% 1826 | -10/Subcaves | Destroyed by EH-JC9(R) with Subdweller Laser Last Messages --------------- Acquired 4 matter. DP-JFF(O) puts together Piercing Trap. Subatomizers dissect the Sub. Optics. Subatomizers dissect the Sub. Monowheel. 3C-UFT(c): "I think it's somewhere north of here" EH-JC9(R) knocked back. Subatomizers dissect the Sub. Monowheel. Aluminum Leg destroyed. DP-JFF(O) collects matter. HR-FJW(R) knocked back. Subatomizers dissect the Sub. Monowheel. DP-JFF(O) puts together Riot Gun. DP-JFF(O) collects matter. HR-FJW(R) destroyed. Lgt. Cannon destroyed. Aluminum Leg destroyed. Mining Laser destroyed. Subatomizers dissect the Sub. Monowheel. IN-BBG(R) affixes Scrap Shield Fragment to Scrap Shield. Map ----- +----------------------------------------------------+ | ???????????????????????????????# ##?# #? | | ???????????????????????????????## ## ##?## ## | | ???????????????????????????###### #??# # | | ??????????????????????????## ##### #??# | | ?????????????????????????## ????## ## #??# | | ?????????????????????????# ?????# ##?##??### | | ?????????????????? ?????# #????## #????????? | | ?????????????????# ?????# ###?## #????????? | | ?????????????????# ????## ### #????????? | | ????????????? ?# #???# & ##????????? | | ????????????# ## #??# #????????? | | ????????????? ??# #???????? | | ????????????? ??## ### #???? | | ????????????? #??# ###?## #???? | | ????????????? ####&[ #????# ??? | | ?????????????# ## O= #???? ##### #? | | ???????????????# " " ! #???# #???? ? | | ????????????????? "##"" &! #### #????? ? | | ???????????# ???????# c #????? ?? | | ?????????"#""""?????# ###????????? | | ????????""" #### #??????????? | | ????????? "" " & #??????????? | | ??????????##" """ ##?????????? | | ???????????#"##""## ### #?????????? | | ??????????????###?###?## #????????? | | ???????????????????????##@ ## ????????? | | ?????????????"" " ####RR ##? ?????????? | | ????????????? "" R##?? ?????????? | | ????????????# %" $ % ##???? ###???????????? | | ?????????????###### ###??????###?????????????? | | ??????????????????## # ?????????????????????????? | | ??????????????????#"" ?????????????????????????? | | ?????????????????#""" "??????????????????????????? | | ?????????????????#"" "#??????????????????????????? | | ??????????????????" ##???????????????????????????? | | ??????????????????" ?????????????????????????????? | | ??????????????????"??????????????????????????????? | | ?????????????????"???????????????????????????????? | | ?????????????????????????????????????????????????? | | ?????????????????????????????????????????????????? | | ?????????????????????????????????????????????????? | | ?????????????????????????????????????????????????? | | ?????????????????????????????????????????????????? | | ?????????????????????????????????????????????????? | | ?????????????????????????????????????????????????? | | ?????????????????????????????????????????????????? | | ?????????????????????????????????????????????????? | | ?????????????????????????????????????????????????? | | ?????????????????????????????????????????????????? | | ?????????????????????????????????????????????????? | +----------------------------------------------------+ Best States ------------- Heat Dissipation 25 Energy Generation 10 Energy Capacity 250 Matter Stores 300 Matter Capacity 300 Sight Range 16 Terrain Scan Range 16 Terrain Scan Density 10 Evasion (%) 55 Item Schematics ----------------- None Robot Schematics ------------------ None Fabricated ------------ Nothing Repaired ---------- EM Pulse Gun | 2% | -10/Materials Alien Tech Used ----------------- None Achievements -------------- None Challenges ------------ None Game ------ Seed WeightAntimatterRipper Manual? 0 Play Time 00:20:43 Cumulative 15.9 hours Start 2025.08.06 @ 23:21:59 End 2025.08.07 @ 17:42:29 Sessions 2 Manual Loads 0 Difficulty Rogue Special Mode None Game No. 20 Rogue 20 Adventurer 0 Explorer 0 Win Type - Total 0 Types 0/0/0/0/0/0/0/0/0/0 Lore% 19 Gallery% 19 Achievement% 21 Wizard Run 0 Options --------- Layout 1 ASCII 0 Keyboard 0 Movement Arrows Keybinds 0 Fullscreen 1 Font 16/SmallcapsGlow Map View 55x38 Zoom Use 0% Tactical HUD 0 Map Filters NONE Filters NONE Steam 1 RUN: 0bda7078-4b88-41e7-8084-223312ce1035